lending/lending_fUSD_20241120
["ID","MTS","AMOUNT","RATE_DAILY","PERIOD"]
[342787916,1732140776893,-1065.14,0.0005726,120]
[342787917,1732140776903,-500.0,0.0005726,120]
[342787918,1732140776912,-1000.0,0.0005726,30]
[342787919,1732140776921,-899.71,0.0005726,120]
[342787920,1732140776932,-1031.07,0.0005726,120]
[342787921,1732140776941,-500.0,0.0005726,120]
[342787922,1732140776951,-2139.66,0.0005726,120]
[342787923,1732140776960,-1746.7,0.0005726,120]
[342787924,1732140776969,-500.0,0.0005726,120]
[342787925,1732140776978,-500.0,0.0005726,120]
[342787926,1732140776987,-500.0,0.0005726,120]
[342787927,1732140776996,-525.57,0.0005726,120]
[342787928,1732140777006,-1007.82,0.0005726,120]
[342787929,1732140777015,-525.94,0.0005726,120]
[342787930,1732140777025,-500.0,0.0005726,120]
[342787931,1732140777035,-500.0,0.0005726,120]
[342787932,1732140777044,-500.0,0.0005726,120]
[342787933,1732140777054,-800.11,0.0005726,120]
[342787934,1732140777063,-3332.16,0.0005726,120]
[342787935,1732140777072,-2450.69,0.0005726,120]
[342787936,1732140777082,-500.0,0.0005726,120]
[342787937,1732140777091,-500.0,0.0005726,120]
[342787938,1732140777101,-1123.27,0.0005726,120]
[342787939,1732140777111,-1393.96,0.0005726,120]
[342787940,1732140777120,-967.57,0.0005726,120]
[342787941,1732140777131,-500.0,0.0005726,120]
[342787942,1732140777140,-1357.65,0.0005726,120]
[342787943,1732140777150,-500.0,0.0005726,120]
[342787944,1732140777164,-1642.87,0.0005726,120]
[342787945,1732140777173,-500.0,0.0005726,120]
[342787946,1732140777183,-1717.17,0.0005726,120]
[342787947,1732140777193,-1588.79,0.0005726,90]
[342787948,1732140777202,-500.0,0.0005726,120]
[342787949,1732140777211,-1853.26,0.0005726,120]
[342787950,1732140777221,-500.0,0.0005726,120]
[342787951,1732140777231,-442.2518063,0.0005726,120]
[342787952,1732140777240,-500.0,0.0005726,120]
[342787953,1732140777250,-500.0,0.0005726,120]
[342787954,1732140777259,-700.0,0.0005726,120]
[342787955,1732140777268,-500.0,0.0005726,120]
[342787956,1732140777278,-514.60765579,0.0005726,120]
[342787957,1732140777287,-2546.22,0.0005726,120]
[342787958,1732140777297,-500.0,0.0005726,120]
[342787959,1732140777306,-2834.37,0.0005726,120]
[342787960,1732140777316,-500.0,0.0005726,120]
[342787961,1732140777327,-1334.03,0.0005726,120]
[342787962,1732140777336,-500.0,0.0005726,120]
[342787963,1732140777346,-500.0,0.0005726,120]
[342787964,1732140777356,-2885.23,0.0005726,120]
[342787965,1732140777366,-4453.81,0.0005726,120]
[342787966,1732140777376,-2241.05,0.0005726,120]
[342787967,1732140777551,-2217.98,0.0005726,120]
[342787968,1732140777565,-500.0,0.0005726,120]
[342787969,1732140777575,-500.0,0.0005726,120]
[342787970,1732140777584,-500.0,0.0005726,120]
[342787971,1732140777594,-500.0,0.0005726,120]
[342787972,1732140777604,-500.0,0.0005726,120]
[342787973,1732140777614,-1402.45,0.0005726,60]
[342787974,1732140777624,-800.61,0.0005726,120]
[342787975,1732140777633,-500.0,0.0005726,120]
[342787976,1732140777643,-932.27,0.0005726,120]
[342787977,1732140777652,-1004.07,0.0005726,120]
[342787978,1732140777662,-500.0,0.0005726,120]
[342787979,1732140777671,-2000.63,0.0005726,120]
[342787980,1732140777680,-2241.76,0.0005726,120]
[342787981,1732140777690,-703.55,0.0005726,120]
[342787982,1732140777700,-1132.68,0.0005726,120]
[342787983,1732140777710,-596.11,0.0005726,120]
[342787984,1732140777721,-794.52,0.0005726,120]
[342787985,1732140777730,-833.99,0.0005726,120]
[342787986,1732140777739,-2777.12,0.0005726,120]
[342787987,1732140777749,-1558.24,0.0005726,120]
[342787988,1732140777759,-1309.21,0.0005726,120]
[342787989,1732140777768,-500.0,0.0005726,120]
[342787990,1732140777778,-500.0,0.0005726,120]
[342787991,1732140777787,-500.0,0.0005726,120]
[342787992,1732140777796,-500.08,0.0005726,120]
[342787993,1732140777806,-500.0,0.0005726,120]
[342787994,1732140777815,-2539.87,0.0005726,120]
[342787995,1732140777824,-500.0,0.0005726,120]
[342787996,1732140777833,-500.0,0.0005726,120]
[342787997,1732140777843,-831.36,0.0005726,120]
[342787998,1732140777852,-500.0,0.0005726,120]
[342787999,1732140777861,-500.0,0.0005726,120]
[342788000,1732140777870,-1743.89,0.0005726,120]
[342788001,1732140777879,-500.0,0.0005726,120]
[342788002,1732140777889,-1365.28,0.0005726,120]
[342788003,1732140777899,-1229.75,0.0005726,120]
[342788004,1732140777908,-1290.22,0.0005726,120]
[342788005,1732140777918,-507.82,0.0005726,120]
[342788006,1732140777927,-500.0,0.0005726,120]
[342788007,1732140777937,-503.01686016,0.0005726,120]
[342788008,1732140777947,-3045.72,0.0005726,120]
[342788009,1732140777957,-500.0,0.0005726,120]
[342788010,1732140777967,-916.6,0.0005726,120]
[342788011,1732140777977,-500.0,0.0005726,120]
[342788012,1732140777987,-500.0,0.0005726,120]
[342788013,1732140777996,-610.75,0.0005726,120]
[342788014,1732140778006,-500.0,0.0005726,120]
[342788015,1732140778017,-1278.95,0.0005726,120]
[342788016,1732140778027,-502.86,0.0005726,120]
[342788017,1732140778041,-504.52,0.0005726,120]
[342788018,1732140778051,-500.0,0.0005726,120]
[342788019,1732140778062,-386.3504502,0.0005726,120]
[342788020,1732140778072,-500.0,0.0005726,120]
[342788021,1732140778082,-702.18,0.0005726,120]
[342788022,1732140778093,-500.0,0.0005726,120]
[342788023,1732140778102,-3583.6,0.0005726,120]
[342788024,1732140778112,-1685.95,0.0005726,120]
[342788025,1732140778122,-500.0,0.0005726,120]
[342788026,1732140778133,-500.0,0.0005726,120]
[342788027,1732140778143,-5689.68,0.0005726,120]
[342788028,1732140778155,-1343.23,0.0005726,120]
[342788029,1732140778166,-303.85372894,0.0005726,120]
[342788030,1732140778176,-500.0,0.0005726,120]
[342788031,1732140778186,-553.27,0.0005726,120]
[342788032,1732140778196,-500.0,0.0005726,120]
[342788033,1732140778208,-500.0,0.0005726,120]
[342788034,1732140778221,-500.0,0.0005726,120]
[342788035,1732140778233,-500.0,0.0005726,120]
[342788036,1732140778244,-1250.26,0.0005726,120]
[342788037,1732140778254,-982.33,0.0005726,120]
[342788038,1732140778263,-500.0,0.0005726,120]
[342788039,1732140778272,-667.62,0.0005726,120]
[342788040,1732140778282,-500.0,0.0005726,120]
[342788041,1732140778293,-500.0,0.0005726,120]
[342788042,1732140778303,-609.95,0.0005726,120]
[342788043,1732140778315,-500.0,0.0005726,120]
[342788044,1732140778326,-500.0,0.0005726,120]
[342788045,1732140778336,-808.05,0.0005726,120]
[342788046,1732140778345,-522.08,0.0005726,120]
[342788047,1732140778355,-1111.01,0.0005726,120]
[342788048,1732140778365,-671.78,0.0005726,120]
[342788049,1732140778374,-500.0,0.0005726,120]
[342788050,1732140778384,-1704.12,0.0005726,120]
[342788051,1732140778394,-2102.13,0.0005726,120]
[342788052,1732140778404,-500.0,0.0005726,120]
[342788053,1732140778413,-500.0,0.0005726,120]
[342788054,1732140778423,-907.83,0.0005726,120]
[342788055,1732140778432,-500.0,0.0005726,120]
[342788056,1732140778442,-1034.91,0.0005726,120]
[342788057,1732140778452,-500.0,0.0005726,120]
[342788058,1732140778463,-675.74,0.0005726,120]
[342788059,1732140778472,-5007.0,0.0005726,120]
[342788060,1732140778482,-2296.76,0.0005726,20]
[342788061,1732140778493,-500.0,0.0005726,120]
[342788062,1732140778504,-500.0,0.0005726,120]
[342788063,1732140778513,-500.0,0.0005726,120]
[342788064,1732140778523,-500.0,0.0005726,120]
[342788065,1732140778534,-798.21,0.0005726,120]
[342788066,1732140778543,-500.0,0.0005726,120]
[342788067,1732140778553,-500.0,0.0005726,120]
[342788068,1732140778562,-500.0,0.0005726,120]
[342788069,1732140778572,-647.62,0.0005726,120]
[342788070,1732140778582,-2489.82,0.0005726,120]
[342788071,1732140778592,-2045.61,0.0005726,120]
[342788072,1732140778602,-500.0,0.0005726,120]
[342788073,1732140778612,-500.0,0.0005726,120]
[342788074,1732140778623,-500.0,0.0005726,120]
[342788075,1732140778632,-500.0,0.0005726,120]
[342788076,1732140778642,-721.64,0.0005726,120]
[342788077,1732140778652,-1208.94,0.0005726,120]
[342788078,1732140778662,-972.27,0.0005726,120]
[342788079,1732140778672,-467.21212319,0.0005726,120]
[342788080,1732140778681,-500.0,0.0005726,120]
[342788081,1732140778693,-1591.78,0.0005726,120]
[342788082,1732140778703,-1887.72,0.0005726,120]
[342788083,1732140778713,-500.0,0.0005726,120]
[342788084,1732140778723,-850.0,0.0005726,120]
[342788085,1732140778731,-852.01,0.0005726,120]
[342788086,1732140778740,-872.84,0.0005726,120]
[342788087,1732140778750,-500.0,0.0005726,120]
[342788088,1732140778759,-500.0,0.0005726,120]
[342788089,1732140778768,-500.0,0.0005726,120]
[342788090,1732140778777,-500.0,0.0005726,120]
[342788091,1732140778787,-846.36,0.0005726,120]
[342788092,1732140778797,-865.82,0.0005726,120]
[342788093,1732140778807,-1191.88,0.0005726,120]
[342788094,1732140778816,-1792.7,0.0005726,120]
[342788095,1732140778826,-5749.44,0.0005726,120]
[342788096,1732140778835,-500.0,0.0005726,120]
[342788097,1732140778845,-500.0,0.0005726,120]
[342788098,1732140778856,-500.0,0.0005726,120]
[342788099,1732140778866,-587.52812616,0.0005726,120]
[342788100,1732140778875,-706.66,0.0005726,120]
[342788101,1732140778886,-500.0,0.0005726,120]
[342788102,1732140778895,-571.98,0.0005726,120]
[342788103,1732140778905,-669.11,0.0005726,120]
[342788104,1732140778914,-500.0,0.0005726,120]
[342788105,1732140778924,-688.41,0.0005726,120]
[342788106,1732140778934,-710.75,0.0005726,120]
[342788107,1732140778944,-1092.67,0.0005726,120]
[342788108,1732140778953,-2203.93,0.0005726,120]
[342788109,1732140778964,-600.76,0.0005726,120]
[342788110,1732140778974,-723.74,0.0005726,120]
[342788111,1732140778984,-962.75,0.0005726,120]
[342788112,1732140778995,-988.55,0.0005726,120]
[342788113,1732140779006,-2304.78,0.0005726,120]
[342788114,1732140779015,-690.54,0.0005726,120]
[342788115,1732140779025,-500.0,0.0005726,120]
[342788116,1732140779036,-843.9,0.0005726,120]
[342788117,1732140779046,-500.0,0.0005726,120]
[342788118,1732140779057,-1647.87,0.0005726,120]
[342788119,1732140779068,-500.0,0.0005726,120]
[342788120,1732140779078,-850.55,0.0005726,120]
[342788121,1732140779087,-809.67,0.0005726,120]
[342788122,1732140779097,-500.0,0.0005726,120]
[342788123,1732140779106,-683.97,0.0005726,120]
[342788124,1732140779116,-834.1,0.0005726,120]
[342788125,1732140779126,-914.77,0.0005726,120]
[342788126,1732140779137,-1141.14,0.0005726,120]
[342788127,1732140779146,-500.0,0.0005726,120]
[342788128,1732140779159,-500.0,0.0005726,120]
[342788129,1732140779169,-624.59,0.0005726,120]
[342788130,1732140779179,-1109.8,0.0005726,120]
[342788131,1732140779189,-500.0,0.0005726,120]
[342788132,1732140779200,-1752.52,0.0005726,120]
[342788133,1732140779210,-1096.46,0.0005726,120]
[342788134,1732140779221,-500.0,0.0005726,120]
[342788135,1732140779233,-950.07,0.0005726,120]
[342788136,1732140779242,-500.0,0.0005726,120]
[342788137,1732140779252,-2142.92,0.0005726,120]
[342788138,1732140779262,-1422.3,0.0005726,120]
[342788139,1732140779271,-829.0,0.0005726,120]
[342788140,1732140779281,-500.0,0.0005726,120]
[342788141,1732140779291,-575.3,0.0005726,120]
[342788142,1732140779300,-500.0,0.0005726,120]
[342788143,1732140779310,-737.82,0.0005726,120]
[342788144,1732140779320,-500.0,0.0005726,120]
[342788145,1732140779330,-666.21,0.0005726,120]
[342788146,1732140779340,-1778.99,0.0005726,120]
[342788147,1732140779349,-1715.56,0.0005726,120]
[342788148,1732140779359,-500.0,0.0005726,120]
[342788149,1732140779369,-1062.65,0.0005726,120]
[342788150,1732140779378,-500.0,0.0005726,120]
[342788151,1732140779388,-2346.15,0.0005726,120]
[342788152,1732140779398,-500.0,0.0005726,120]
[342788153,1732140779407,-500.0,0.0005726,120]
[342788154,1732140779416,-949.47,0.0005726,120]
[342788155,1732140779426,-1351.22,0.0005726,120]
[342788156,1732140779435,-514.84050676,0.0005726,120]
[342788157,1732140779444,-888.32,0.0005726,120]
[342788158,1732140779454,-642.33,0.0005726,120]
[342788159,1732140779464,-880.81,0.0005726,120]
[342788160,1732140779474,-597.52,0.0005726,120]
[342788161,1732140779483,-6141.54,0.0005726,120]
[342788162,1732140779493,-500.0,0.0005726,120]
[342788163,1732140779502,-1511.19,0.0005726,120]
[342788164,1732140779512,-1086.04,0.0005726,120]
[342788165,1732140779522,-668.34,0.0005726,120]
[342788166,1732140779531,-1351.32,0.0005726,120]
[342788167,1732140779541,-1492.04,0.0005726,120]
[342788168,1732140779550,-926.38,0.0005726,120]
[342788169,1732140779561,-695.0,0.0005726,120]
[342788170,1732140779571,-500.0,0.0005726,120]
[342788171,1732140779580,-5287.99,0.0005726,120]
[342788172,1732140779591,-500.0,0.0005726,120]
[342788173,1732140779600,-500.0,0.0005726,120]
[342788174,1732140779610,-845.23,0.0005726,120]
[342788175,1732140779620,-1482.2,0.0005726,120]
[342788176,1732140779629,-500.0,0.0005726,120]
[342788177,1732140779639,-500.0,0.0005726,120]
[342788178,1732140779648,-1260.12,0.0005726,120]
[342788179,1732140779659,-500.0,0.0005726,120]
[342788180,1732140779669,-1283.29,0.0005726,120]
[342788181,1732140779679,-1393.35,0.0005726,120]
[342788182,1732140779689,-500.0,0.0005726,120]
[342788183,1732140779698,-500.0,0.0005726,120]
[342788184,1732140779708,-500.0,0.0005726,120]
[342788185,1732140779718,-500.0,0.0005726,120]
[342788186,1732140779728,-2642.2,0.0005726,120]
[342788187,1732140780090,-1536.4,0.0005726,120]
[342788188,1732140780101,-3168.55,0.0005726,120]
[342788189,1732140780111,-500.0,0.0005726,120]
[342788190,1732140780121,-500.0,0.0005726,120]
[342788191,1732140780130,-827.35,0.0005726,120]
[342788192,1732140780140,-500.0,0.0005726,120]
[342788193,1732140780149,-500.0,0.0005726,120]
[342788194,1732140780162,-1702.89,0.0005726,120]
[342788195,1732140780172,-500.0,0.0005726,120]
[342788196,1732140780182,-500.0,0.0005726,120]
[342788197,1732140780192,-641.78,0.0005726,120]
[342788198,1732140780202,-1344.44,0.0005726,120]
[342788199,1732140780212,-1090.73,0.0005726,120]
[342788200,1732140780222,-52850.67,0.0005726,120]
[342788201,1732140780234,-500.0,0.0005726,120]
[342788202,1732140780244,-1753.45,0.0005726,120]
[342788203,1732140780254,-1006.78,0.0005726,120]
[342788204,1732140780264,-500.0,0.0005726,120]
[342788205,1732140780274,-1064.88,0.0005726,120]
[342788206,1732140780284,-500.0,0.0005726,120]
[342788207,1732140780293,-500.0,0.0005726,120]
[342788208,1732140780303,-622.97,0.0005726,120]
[342788209,1732140780313,-3042.17,0.0005726,120]
[342788210,1732140780322,-1736.39,0.0005726,120]
[342788211,1732140780332,-2339.16,0.0005726,120]
[342788212,1732140780342,-700.57,0.0005726,120]
[342788213,1732140780352,-585.35,0.0005726,120]
[342788214,1732140780362,-523.5,0.0005726,120]
[342788215,1732140780372,-2627.11,0.0005726,120]
[342788216,1732140780382,-1522.74,0.0005726,120]
[342788217,1732140780391,-1766.0,0.0005726,120]
[342788218,1732140780402,-500.0,0.0005726,120]
[342788219,1732140780413,-693.99,0.0005726,120]
[342788220,1732140780423,-5335.95,0.0005726,120]
[342788221,1732140780433,-500.0,0.0005726,120]
[342788222,1732140780443,-973.18,0.0005726,120]
[342788223,1732140780453,-500.0,0.0005726,120]
[342788224,1732140780464,-500.0,0.0005726,120]
[342788225,1732140780475,-778.26,0.0005726,120]
[342788226,1732140780484,-248.60570718,0.0005726,120]
[342788227,1732140780494,-500.0,0.0005726,120]
[342788228,1732140780504,-561.95,0.0005726,120]
[342788229,1732140780514,-868.31,0.0005726,120]
[342788230,1732140780523,-1122.37,0.0005726,120]
[342788231,1732140780533,-400.36,0.0005726,7]
[342788232,1732140780543,-620.69,0.0005726,120]
[342788233,1732140780553,-1223.49,0.0005726,120]
[342788234,1732140780563,-500.0,0.0005726,120]
[342788235,1732140780573,-1516.54,0.0005726,120]
[342788236,1732140780583,-4704.32,0.0005726,120]
[342788237,1732140780593,-1041.7,0.0005726,120]
[342788238,1732140780602,-500.0,0.0005726,120]
[342788239,1732140780612,-1384.57,0.0005726,120]
[342788240,1732140780622,-1309.89,0.0005726,120]
[342788241,1732140780632,-525.76,0.0005726,120]
[342788242,1732140780642,-500.0,0.0005726,120]
[342788243,1732140780652,-500.0,0.0005726,120]
[342788244,1732140780662,-2257.06,0.0005726,120]
[342788245,1732140780671,-2012.7,0.0005726,120]
[342788246,1732140780682,-500.0,0.0005726,120]
[342788247,1732140780692,-500.0,0.0005726,120]
[342788248,1732140780701,-656.82,0.0005726,120]
[342788249,1732140780711,-1047.88,0.0005726,120]
[342788250,1732140780726,-500.0,0.0005726,120]
[342788251,1732140780735,-500.0,0.0005726,120]
[342788252,1732140780745,-1177.9,0.0005726,120]
[342788253,1732140780754,-1603.42,0.0005726,120]
[342788254,1732140780764,-500.0,0.0005726,120]
[342788255,1732140780774,-1567.54,0.0005726,120]
[342788256,1732140780783,-500.0,0.0005726,120]
[342788257,1732140780793,-834.44,0.0005726,120]
[342788258,1732140780802,-500.0,0.0005726,120]
[342788259,1732140780812,-500.0,0.0005726,120]
[342788260,1732140780822,-2004.44,0.0005726,120]
[342788261,1732140780831,-1050.71,0.0005726,120]
[342788262,1732140780840,-1803.54,0.0005726,120]
[342788263,1732140780850,-650.66,0.0005726,120]
[342788264,1732140780859,-516.91,0.0005726,120]
[342788265,1732140780869,-500.0,0.0005726,120]
[342788266,1732140780878,-500.0,0.0005726,120]
[342788267,1732140780888,-500.0,0.0005726,120]
[342788268,1732140780897,-950.3,0.0005726,120]
[342788269,1732140780908,-4162.19,0.0005726,120]
[342788270,1732140780917,-500.0,0.0005726,120]
[342788271,1732140780926,-1325.24,0.0005726,120]
[342788272,1732140780936,-729.88,0.0005726,120]
[342788273,1732140780946,-1437.64,0.0005726,120]
[342788274,1732140780957,-951.19,0.0005726,120]
[342788275,1732140780969,-500.0,0.0005726,120]
[342788276,1732140780978,-739.2,0.0005726,120]
[342788277,1732140780988,-711.16,0.0005726,120]
[342788278,1732140780998,-35063.23,0.0005726,120]
[342788279,1732140781007,-500.0,0.0005726,120]
[342788280,1732140781018,-758.38,0.0005726,120]
[342788281,1732140781028,-500.0,0.0005726,120]
[342788282,1732140781038,-500.0,0.0005726,120]
[342788283,1732140781048,-500.0,0.0005726,120]
[342788284,1732140781058,-1066.88,0.0005726,120]
[342788285,1732140781068,-500.0,0.0005726,120]
[342788286,1732140781079,-604.09,0.0005726,120]
[342788287,1732140781088,-1309.97,0.0005726,120]
[342788288,1732140781098,-516.9,0.0005726,120]
[342788289,1732140781108,-1271.19,0.0005726,120]
[342788290,1732140781118,-1055.78,0.0005726,120]
[342788291,1732140781128,-1776.53,0.0005726,120]
[342788292,1732140781137,-2027.31,0.0005726,120]
[342788293,1732140781147,-2957.46,0.0005726,120]
[342788294,1732140781161,-565.96,0.0005726,120]
[342788295,1732140781171,-3450.26,0.0005726,120]
[342788296,1732140781180,-1015.77,0.0005726,120]
[342788297,1732140781189,-500.0,0.0005726,120]
[342788298,1732140781200,-5653.29,0.0005726,120]
[342788299,1732140781209,-2531.55,0.0005726,120]
[342788300,1732140781223,-1396.17,0.0005726,120]
[342788301,1732140781234,-578.1,0.0005726,120]
[342788302,1732140781243,-699.76,0.0005726,120]
[342788303,1732140781254,-1045.04,0.0005726,120]
[342788304,1732140781264,-1833.67,0.0005726,120]
[342788305,1732140781274,-500.0,0.0005726,120]
[342788306,1732140781284,-671.36,0.0005726,120]
[342788307,1732140781293,-500.0,0.0005726,120]
[342788308,1732140781303,-1250.43,0.0005726,120]
[342788309,1732140781312,-618.56,0.0005726,120]
[342788310,1732140781322,-1529.97,0.0005726,120]
[342788311,1732140781332,-916.63,0.0005726,120]
[342788312,1732140781342,-7124.81,0.0005726,120]
[342788313,1732140781352,-1979.2,0.0005726,120]
[342788314,1732140781362,-1114.64,0.0005726,120]
[342788315,1732140781372,-500.0,0.0005726,120]
[342788316,1732140781382,-500.0,0.0005726,120]
[342788317,1732140781393,-1049.5,0.0005726,120]
[342788318,1732140781404,-1449.91,0.0005726,120]
[342788319,1732140781413,-500.0,0.0005726,120]
[342788320,1732140781423,-2536.25,0.0005726,120]
[342788321,1732140781433,-3951.61,0.0005726,120]
[342788322,1732140781443,-2472.73,0.0005726,120]
[342788323,1732140781453,-500.0,0.0005726,120]
[342788324,1732140781462,-500.0,0.0005726,120]
[342788325,1732140781474,-500.0,0.0005726,120]
[342788326,1732140781484,-786.55,0.0005726,120]
[342788327,1732140781494,-500.0,0.0005726,120]
[342788328,1732140781504,-4870.15,0.0005726,120]
[342788329,1732140781515,-883.86,0.0005726,120]
[342788330,1732140781525,-2000.0,0.0005726,30]
[342788331,1732140781535,-500.0,0.0005726,120]
[342788332,1732140781545,-4533.42,0.0005726,120]
[342788333,1732140781555,-636.47,0.0005726,120]
[342788334,1732140781564,-851.5,0.0005726,120]
[342788335,1732140781574,-1816.21,0.0005726,120]
[342788336,1732140781583,-616.92,0.0005726,120]
[342788337,1732140781593,-1014.23,0.0005726,120]
[342788338,1732140781603,-6811.17,0.0005726,120]
[342788339,1732140781613,-500.0,0.0005726,120]
[342788340,1732140781623,-500.0,0.0005726,120]
[342788341,1732140781632,-500.0,0.0005726,120]
[342788342,1732140781641,-500.0,0.0005726,120]
[342788343,1732140781651,-1332.89,0.0005726,120]
[342788344,1732140781661,-753.95,0.0005726,120]
[342788345,1732140781671,-10722.81,0.0005726,120]
[342788346,1732140781682,-560.19899199,0.0005726,120]
[342788347,1732140781692,-1359.85,0.0005726,120]
[342788348,1732140781702,-2324.44,0.0005726,120]
[342788349,1732140781711,-535.04,0.0005726,120]
[342788350,1732140781723,-500.0,0.0005726,120]
[342788351,1732140781733,-4406.16,0.0005726,120]
[342788352,1732140781743,-1128.91,0.0005726,120]
[342788353,1732140781753,-665.96,0.0005726,120]
[342788354,1732140781762,-980.99,0.0005726,120]
[342788355,1732140781772,-580.64,0.0005726,120]
[342788356,1732140781781,-892.8,0.0005726,120]
[342788357,1732140781792,-1436.75,0.0005726,120]
[342788358,1732140781802,-558.99,0.0005726,120]
[342788359,1732140781812,-778.22,0.0005726,120]
[342788360,1732140781821,-1153.44,0.0005726,7]
[342788361,1732140781831,-2548.81,0.0005726,120]
[342788362,1732140781841,-3675.23,0.0005726,120]
[342788363,1732140781851,-500.0,0.0005726,120]
[342788364,1732140781861,-500.0,0.0005726,120]
[342788365,1732140781871,-607.87801772,0.0005726,120]
[342788366,1732140781880,-3167.44,0.0005726,120]
[342788367,1732140781891,-2249.83,0.0005726,120]
[342788368,1732140781901,-500.0,0.0005726,120]
[342788369,1732140781911,-500.0,0.0005726,120]
[342788370,1732140781921,-11179.92,0.0005726,21]
[342788371,1732140781931,-504.49468324,0.0005726,120]
[342788372,1732140781940,-859.5,0.0005726,120]
[342788373,1732140781950,-500.0,0.0005726,120]
[342788374,1732140781959,-3662.75,0.0005726,120]
[342788375,1732140781971,-922.45,0.0005726,120]
[342788376,1732140781981,-500.0,0.0005726,120]
[342788377,1732140781991,-500.0,0.0005726,120]
[342788378,1732140782003,-1994.35,0.0005726,120]
[342788379,1732140782012,-500.0,0.0005726,120]
[342788380,1732140782021,-1162.72,0.0005726,120]
[342788381,1732140782031,-1363.9,0.0005726,120]
[342788382,1732140782040,-66449.02,0.0005726,5]
[342788383,1732140782050,-1114.06,0.0005726,120]
[342788384,1732140782060,-1815.23,0.0005726,120]
[342788385,1732140782070,-1159.58,0.0005726,120]
[342788386,1732140782079,-500.0,0.0005726,120]
[342788387,1732140782089,-500.0,0.0005726,120]
[342788388,1732140782099,-509.78712728,0.0005726,120]
[342788389,1732140782109,-2826.01,0.0005726,120]
[342788390,1732140782120,-6111.41,0.0005726,120]
[342788391,1732140782130,-500.0,0.0005726,120]
[342788392,1732140782140,-500.0,0.0005726,120]
[342788393,1732140782150,-1031.65,0.0005726,120]
[342788394,1732140782164,-532.59,0.0005726,120]
[342788395,1732140782174,-754.16,0.0005726,120]
[342788396,1732140782183,-500.0,0.0005726,120]
[342788397,1732140782194,-500.0,0.0005726,120]
[342788398,1732140782205,-553.58,0.0005726,120]
[342788399,1732140782215,-3918.3,0.0005726,120]
[342788400,1732140782225,-500.0,0.0005726,120]
[342788401,1732140782236,-687.41,0.0005726,120]
[342788402,1732140782246,-2233.29,0.0005726,120]
[342788403,1732140782256,-2901.67,0.0005726,120]
[342788404,1732140782266,-500.0,0.0005726,120]
[342788405,1732140782276,-1693.94,0.0005726,120]
[342788406,1732140782287,-1140.89,0.0005726,120]
[342788407,1732140782297,-743.27,0.0005726,120]
[342788408,1732140782307,-884.65,0.0005726,120]
[342788409,1732140782317,-4798.42,0.0005726,120]
[342788410,1732140782327,-500.0,0.0005726,120]
[342788411,1732140782337,-589.18,0.0005726,120]
[342788412,1732140782346,-1609.97,0.0005726,120]
[342788413,1732140782355,-500.0,0.0005726,120]
[342788414,1732140782365,-548.16,0.0005726,120]
[342788415,1732140782374,-4873.91,0.0005726,120]